Cogmind - Beta 16.1 @@@ ROGUE MODE // 2026.05.03 @ 09:30:12 Player: supa Result: Destroyed by D-53 Grenadier with Mini Grenade Launcher Performance ------------- Evolutions (0) 0 Regions Visited (0) 0 Robots Destroyed (0) 0 Value Destroyed (0) 0 Prototype IDs (0) 0 Alien Tech Used (0) 0 Bonus (0) 0 TOTAL SCORE: 0 Bonus ------- None Cogmind --------- Core Integrity 0/250 Matter 300/300 Energy 99/100 System Corruption 0% Temperature Cool (0) Movement Core (50) Location -11/Scrapyard Parts ------- > --- POWER (1) -------- (None) > --- PROPULSION (2) --- (None) > --- UTILITY (2) ------ (None) > --- WEAPON (2) ------- (None) > --- INVENTORY (5) ---- Ion Engine Ion Engine Aluminum Leg Small Storage Unit Light Assault Rifle Peak State ------------ > --- POWER ------------ (None) > --- PROPULSION ------- Light Treads Light Treads > --- UTILITY ---------- (None) > --- WEAPON ----------- EM Pulse Gun Assault Rifle > --- INVENTORY -------- Ion Engine Ion Engine Aluminum Leg Small Storage Unit [Rating: 4] Favorites ----------- Power None Propulsion Light Treads Treads Light Treads Utility None Weapon Assault Rifle Energy Gun EM Pulse Gun Ballistic Gun Assault Rifle Build | -11 ------- Run | Yrd Slots Evolved . | . Power . | . Propulsion . | . Utility . | . Weapon . | . Parts Attached 4 | 4 Power . | . Engine . | . Core . | . Reactor . | . Propulsion 2 | 2 Treads 2 | 2 Leg . | . Wheel . | . Hover . | . Flight . | . Utility . | . Device . | . Storage . | . Processor . | . Hackware . | . Protection . | . Artifact . | . Weapon 2 | 2 Energy Gun 1 | 1 Energy Cannon . | . Ballistic Gun 1 | 1 Ballistic Cannon . | . Launcher . | . Special Weapon . | . Impact Weapon . | . Slashing Weapon . | . Piercing Weapon . | . Special Melee Weapon . | . Unidentified Prototypes . | . Parts Lost . | . Power . | . Propulsion . | . Utility . | . Weapon . | . Highest Loss Streak . | . To Critical Strikes . | . Average Backups 4 | 4 Power 1 | 1 Propulsion . | . Utility . | . Weapon . | . Tool/Special . | . Unused Backups 5 | 5 Power 2 | 2 Propulsion 1 | 1 Utility 1 | 1 Weapon 1 | 1 Tool/Special . | . Average Slot Usage (%) . | . Peak Build Rating 4 | 4 Average Rating 3 | 3 On Entrance . | . Avg Prop Armor Cover (%) . | . Naked Turns . | . Heaviest Build 4 | 4 Greatest Support 40 | 40 Greatest Overweight (x) . | . Average Overweight (x) . | . Largest Inventory Capacity 5 | 5 Average Capacity 5 | 5 Most Carried 5 | 5 Average Carried 4 | 4 Final Capacity 5 | 5 Final Carried 5 | 5 Class Distribution -------------------- None Dominant Class ---------------- None Resources | -11 ----------- Run | Yrd Matter Collected 243 | 243 Remotely . | . Salvage Created . | . Parts . | . Haulers Intercepted . | . Recyclers Shooed . | . Parts Field Recycled . | . Retrieved Matter . | . Parts Self-Destructed . | . Prevented . | . Parts Restored . | . Kills | -11 ------- Run | Yrd Combat Hostiles Destroyed . | . Classes Destroyed . | . Best Kill Streak . | . Combat Bots Only . | . Max Kills in Single Turn . | . Gunslinging . | . Exploded . | . Melee . | . Uniques/NPCs Destroyed . | . Combat | -11 -------- Run | Yrd Hostile Shots Fired 17 | 17 Missed 4 | 4 Hits 13 | 13 Melee 3 | 3 Projectile 10 | 10 AOE 5 | 5 Damage Taken 317 | 317 Core 255 | 255 Absorbed by Shields . | . Core Remaining (%) . | . Volleys Fired 1 | 1 Largest 2 | 2 Hottest 60 | 60 Shots Fired 2 | 2 Gun 2 | 2 Cannon . | . Launcher . | . Special . | . Kinetic 1 | 1 Thermal . | . Explosive . | . Electromagnetic 1 | 1 Robot Hit Streak 2 | 2 Robot Miss Streak . | . Penetration Max . | . Secondary Targets . | . Shots Hit Robots 2 | 2 Core Hits . | . Critical Kills . | . Critical Parts Destroyed . | . Critical Strikes 1 | 1 Corrupt 1 | 1 Melee Attacks . | . Impact . | . Slashing . | . Piercing . | . Sneak Attacks . | . Combat Hostiles . | . Follow-up Attacks . | . Damage Inflicted 21 | 21 Guns 21 | 21 Cannons . | . Explosions . | . Melee . | . Ramming . | . Kinetic 10 | 10 Thermal . | . Explosive . | . Electromagnetic 11 | 11 Impact . | . Slashing . | . Piercing . | . Highest Corruption . | . Average Corruption . | . Corruption Purged . | . Corruption Blocked . | . Overload Shots . | . Overflow Damage . | . Projectiles . | . Explosions . | . Melee . | . Knockbacks . | . Impact . | . Kinetic . | . Secondary . | . Self-Inflicted Damage . | . Shots . | . Rammed . | . Targets Rammed . | . Kicked . | . Crushed . | . Highest Temperature . | . Average Temperature . | . Received Heat Transfer . | . Siege Activations . | . Martial Activations . | . Shielding Activations . | . Robots Disrupted . | . Combat Hostiles . | . Robots Corrupted . | . Combat Hostiles . | . Parts Fried . | . Impact Corruptions . | . Robots Melted . | . Combat Hostiles . | . Parts Melted . | . Heat Transferred . | . Parts Sabotaged . | . Parts Stolen . | . Parts Stripped . | . Power Chain Reactions . | . Alert | -11 ------- Run | Yrd Maximum Alert Level . | . Low Security (%) 100 | 100 Level 1 . | . Level 2 . | . Level 3 . | . Level 4 . | . Level 5 . | . High Security . | . Max Security . | . Peak Influence 15 | 15 Initial . | . Average . | . Influence Increases 15 | 15 Lose Combat Pursuer 15 | 15 Influence Decreases 1 | 1 Time Decay 1 | 1 Squads Dispatched . | . Investigation . | . Extermination . | . Reinforcement . | . Assault . | . Garrison . | . Intercept . | . Searches Triggered . | . Construction Impeded . | . Haulers Reinforced . | . Active Scanning Responses . | . Cargo Convoy Interrupts . | . Stealth | -11 --------- Run | Yrd Distress Signals . | . Communications Jammed . | . Distress Signals . | . Times Spotted 32 | 32 Peak Tracking Total 20 | 20 Tactical Retreats 3 | 3 Traps | -11 ------- Run | Yrd Traps Triggered . | . Indirectly . | . Trap Hack Attempts . | . Triggered . | . Disarmed . | . Reprogrammed . | . Reused . | . Traps Extracted . | . Installed . | . Triggered . | . Machines | -11 ---------- Run | Yrd Machines Disabled . | . Max in Single Turn . | . Machines Repaired . | . Machines Dismantled . | . Machines Sabotaged . | . Overloaded Fab Kills . | . Hacking | -11 --------- Run | Yrd Machines Accessed . | . Terminals . | . Fabricators . | . Repair Stations . | . Recycling Units . | . Scanalyzers . | . Garrison Access . | . Total Hacks . | . Successful . | . Failed . | . Catastrophic . | . Database Lockouts . | . Manual . | . Terminals . | . Fabricators . | . Repair Stations . | . Recycling Units . | . Scanalyzers . | . Garrison Access . | . Terminal Hacks . | . Fabricator Hacks . | . Repair Station Hacks . | . Recycling Unit Hacks . | . Scanalyzer . | . Garrison Access Hacks . | . Unauthorized Hacks . | . Terminals . | . Fabricators . | . Repair Stations . | . Recycling Units . | . Scanalyzers . | . Garrison Access . | . Data Cores Recovered . | . Used . | . Hacking Detections . | . Full Trace Events . | . Feedback Events . | . Feedback Blocked . | . Robot Schematics Acquired . | . Robots Built . | . Authchips . | . Time . | . Total Robot Build Rating . | . Part Schematics Acquired . | . Parts Built . | . Authchips . | . Time . | . Total Part Build Rating . | . Part Studies Acquired . | . Parts Repaired . | . Time . | . Parts Recycled . | . Recycled Matter . | . Retrieved Matter . | . Retrieved Components . | . Parts Scanalyzed . | . Part Schematics Acquired . | . Parts Damaged . | . Bothacking | -11 ------------ Run | Yrd Used RIF Installer . | . Robots Hacked . | . Non-combat . | . Combat . | . Robot Hacks Applied . | . Relay Couplers Released . | . Fabnet Peak Effective % . | . Robots Rewired . | . Allies Hacked . | . Hacks Repelled . | . Allies | -11 -------- Run | Yrd Total Allies . | . Largest Group . | . Highest-Rated Group . | . Highest-Rated Ally . | . Total Orders . | . Ally Attacks . | . Total Damage . | . Kills . | . Allies Corrupted . | . Allies Melted . | . Intel | -11 ------- Run | Yrd Active Infowar (turns) . | . Robot Analysis Total . | . Derelict Logs Recovered . | . Drone Launches . | . Drone Recoveries . | . Exploration | -11 ------------- Run | Yrd Turns Passed 4324 | 4324 Spaces Moved 1134 | 1134 Core 139 | 139 Treads 995 | 995 Legs . | . Wheels . | . Hover . | . Flight . | . Fastest Speed 50 | 50 Average Speed 146 | 146 Slowest Speed 160 | 160 Overloaded Moves . | . Propulsion Burnouts . | . Robots Hopped . | . Potential Cave-ins . | . Cave-ins Triggered . | . Exploration Rate (%) 57 | 57 Regions Visited . Branch Regions . Pre-discovered Areas . | . Known Exits Taken . | . Unknown Exits Taken . | . Scrap Searched . | . Spaces Dug . | . Terrain Destroyed . | . Melee . | . Projectile . | . AOE . | . Terrain Rammed . | . Walls Destroyed . | . Machines Disabled . | . Actions | -11 --------- Run | Yrd Total 3793 | 3793 Wait 2646 | 2646 Move 1134 | 1134 Hop . | . Pick Up 7 | 7 Fast Attach 2 | 2 Attach 2 | 2 Detach . | . Swap . | . Drop . | . Fire 1 | 1 Melee . | . Ram . | . Kick . | . Crush . | . Escape Stasis . | . Rewire 1 | 1 Trap . | . Miscellaneous . | . Route ------- -11/Scrapyard (discovered 1 exit: [*Mat]) History --------- Turn | Location | Event 34 | -11/Scrapyard | Discovered new exit (range 15) 4234 | -11/Scrapyard | Assembled infested the area 4246 | -11/Scrapyard | Released all parts (4) 4284 | -11/Scrapyard | Core integrity fell below 50% 4325 | -11/Scrapyard | Core integrity fell below 20% 4325 | -11/Scrapyard | Destroyed by D-53 Grenadier with Mini Grenade Launcher Last Messages --------------- 04263_ as-25121 destroyed. 04263_ as-03216 destroyed. 04263_ as-42713 destroyed. 04268_ as-18808 destroyed. 04268_ as-28830 destroyed. 04268_ D-53 Grenadier suffers critical hit (Destroy). 04269_ D-53 Grenadier shuts down. 04271_ as-40464 destroyed. 04271_ as-22438 destroyed. 04272_ D-53 Grenadier suffers critical hit (Destroy). 04273_ as-52542 destroyed. 04273_ D-53 Grenadier destroyed. 04276_ The unstable cave ceiling collapses. 04280_ Attempting to rewire D-53 Grenadier. 04281_ The unstable cave ceiling collapses. 04281_ D-53 Grenadier reactivates. 04312_ Acquired 36 matter. 04316_ The unstable cave ceiling collapses. Map ----- +----------------------------------------------------+ | | | ?????????????????????????????????????????????????? | | ?????????????????????????????????????????????????? | | ?????????????????????????????????????????????????? | | ?????????????????????????????????????????????????? | | ?????????????????????????????????????????????????? | | ?????????????????????????????????????????????????? | | ?????????????????????????????????????????????????? | | ?????????????????????????????????????????????????? | | ?????????????????????????????????????????????????? | | ?????????????????????????????????????????????????? | | ?????????????????????????????????????????????????? | | ?????????????????????????????????????????????????? | | ?????????????????????????????????????????????????? | | ???????????####??????????????????????????????????? | | ############ #??????????????????????????????????? | | ##?????????????????????????????????? | | [ % # ##????????????????????????????????? | | =[ #????????????????????????????????? | | = # ##???????????????????????????????? | | ##### # # ###?????????????????????????????? | | ####???# # # ############??????????????????? | | ######## # a ##?????????????????? | | #?????????????????? | | #?????????????????? | | # @ #?????????????????? | | ########??????????? | | # #??????????? | | ##### #### # # #??????????? | | ##### ##### %= # #??????????? | | = a # #??????????? | | # #??????????? | | ####### ### #??????????? | | # ## %## ### ########d # #??????????? | | # ## ####?###?# # t########??????????? | | # ## #????????# # ## #??????????? | | # ## ########## # #??????????? | | ############ # # # # #??????????? | | # # # # # # #??????????? | | # # # # #??????????? | | # # # # # # #??????????? | | # # # ###### ###########???????? | | # # # ## # # #???????? | | # ## # # #???????? | | # # # ## # # #???????? | | ## # # ## # # #???????? | | ?########### ########### # #???????? | | #####???# #??????# # # #???????? | | #???# #??????? # # #???????? | | #???# ########## # # #???????? | +----------------------------------------------------+ Best States ------------- Heat Dissipation 25 Energy Generation 5 Energy Capacity 100 Matter Stores 300 Matter Capacity 300 Sight Range 16 Terrain Scan Density 10 Evasion (%) 50 Recoil Reduction 2 Item Schematics ----------------- None Robot Schematics ------------------ None Fabricated ------------ Nothing Repaired ---------- Nothing Studied --------- None Alien Tech Used ----------------- None Achievements -------------- Curiosity Killed The Cat Live, Flee, And Rebuild Challenges ------------ None Game ------ Seed HeatWardroneChargecaster Manual? 0 Play Time 00:18:03 Cumulative 59.9 hours Start 2026.05.02 @ 20:33:49 End 2026.05.03 @ 09:30:12 Sessions 2 Manual Loads 0 Difficulty Rogue Special Mode None Game No. 11 Rogue 9 Adventurer 1 Explorer 1 Win Type - Total 3 Types 1/0/2/0/0/0/0/0/0/0 Lore% 17 Gallery% 27 Achievement% 20 Wizard Run 0 Options --------- Layout 1 ASCII 0 Keyboard 0 Movement Mouse Keybinds 0 Fullscreen 1 Font 32/SmallcapsGlow Map View 50x35 Zoom Use 0% Tactical HUD 1 Map Filters NONE Filters NONE Steam 1 RUN: bc8a56ee-1ad6-4fb7-a30c-bfc618943f1e